fUST/lending_fUST_20251002
["ID","MTS","AMOUNT","RATE_DAILY","PERIOD"]
[388814546,1759385691087,500.0,0.00033575,60]
[388814547,1759385691143,455.99,0.00033575,60]
[388814548,1759385691410,500.0,0.00033575,60]
[388814549,1759385691659,500.0,0.00033575,60]
[388814550,1759385691926,500.0,0.00033575,60]
[388814551,1759385692192,500.0,0.00033575,60]
[388814552,1759385692379,500.0,0.00033575,60]
[388814553,1759385692559,500.0,0.00033575,60]
[388814554,1759385692638,460.0,0.00033575,60]
[388814555,1759385692699,500.0,0.00033575,60]
[388814556,1759385693117,500.0,0.00033575,60]
[388814557,1759385694537,500.0,0.00033575,60]
[388814558,1759385694794,500.0,0.00033575,60]
[388814559,1759385695040,172.82,0.00033575,60]
[388814560,1759385698043,500.0,0.00033575,60]
[388814561,1759385698275,500.0,0.00033575,60]
[388814562,1759385698546,500.0,0.00033575,60]
[388814563,1759385698634,500.0,0.00033575,60]
[388814564,1759385698707,480.0,0.00033575,60]
[388814565,1759385698810,632.74,0.00033575,60]
[388814566,1759385698912,500.0,0.00033575,60]
[388814567,1759385699128,500.0,0.00033575,60]
[388814568,1759385699357,500.0,0.00033575,60]
[388814569,1759385699583,500.0,0.00033575,60]
[388814570,1759385699852,500.0,0.00033575,60]
[388814571,1759385700098,500.0,0.00033575,60]
[388814572,1759385700162,500.0,0.00033575,60]
[388814573,1759385700360,500.0,0.00033575,60]
[388814574,1759385700425,500.0,0.00033575,60]
[388814575,1759385700497,500.0,0.00033575,60]
[388814576,1759385700588,500.0,0.00033575,60]
[388814577,1759385700651,500.0,0.00033575,60]
[388814578,1759385700715,500.0,0.00033575,60]
[388814579,1759385700782,500.0,0.00033575,60]
[388814580,1759385700853,500.0,0.00033575,60]
[388814581,1759385700916,500.0,0.00033575,60]
[388814582,1759385700979,500.0,0.00033575,60]
[388814583,1759385701044,201.23,0.00033575,60]
[388814584,1759385701104,153.75,0.00033575,60]
[388814585,1759385701164,500.0,0.00033575,60]
[388814586,1759385701226,500.0,0.00033575,60]
[388814587,1759385701326,500.0,0.00033575,60]
[388814588,1759385701387,500.0,0.00033575,60]
[388814589,1759385701644,500.0,0.00033575,60]
[388814590,1759385701703,500.0,0.00033575,60]
[388814591,1759385701913,500.0,0.00033575,60]
[388814592,1759385701973,500.0,0.00033575,60]
[388814593,1759385702117,500.0,0.00033575,60]
[388814594,1759385702178,561.08,0.00033575,60]
[388814595,1759385702377,500.0,0.00033575,60]
[388814596,1759385702658,500.0,0.00033575,60]
[388814597,1759385702893,500.0,0.00033575,60]
[388814598,1759385702965,481.35726143,0.00033575,60]
[388814599,1759385703132,191.79,0.00033575,60]
[388814600,1759385704017,500.0,0.00033575,60]
[388814601,1759385704239,500.0,0.00033575,60]
[388814602,1759385704475,500.0,0.00033575,60]
[388814603,1759385706312,480.0,0.00033575,60]
[388814604,1759385711267,1004.5019722,0.00033575,60]
[388814605,1759385712906,481.12405789,0.00033575,60]
[388814606,1759385715795,500.0,0.00033575,60]
[388814607,1759385716041,500.0,0.00033575,60]
[388814608,1759385716277,500.0,0.00033575,60]
[388814609,1759385716713,500.0,0.00033575,60]
[388814610,1759385716874,480.0,0.00033575,60]
[388814611,1759385716959,500.0,0.00033575,60]
[388814612,1759385717179,500.0,0.00033575,60]
[388814613,1759385717401,500.0,0.00033575,60]
[388814614,1759385717645,500.0,0.00033575,60]
[388814615,1759385717900,500.0,0.00033575,60]
[388814616,1759385718138,500.0,0.00033575,60]
[388814617,1759385718392,500.0,0.00033575,60]
[388814618,1759385718595,480.0,0.00033575,60]
[388814619,1759385718666,581.64,0.00033575,60]
[388814620,1759385718737,500.0,0.00033575,60]
[388814621,1759385718930,500.0,0.00033575,60]
[388814622,1759385719150,500.0,0.00033575,60]
[388814623,1759385719376,500.0,0.00033575,60]
[388814624,1759385719621,500.0,0.00033575,60]
[388814625,1759385719858,500.0,0.00033575,60]
[388814626,1759385720090,500.0,0.00033575,60]
[388814627,1759385720321,500.0,0.00033575,60]
[388814628,1759385720391,500.0,0.00033575,60]
[388814629,1759385720551,634.87,0.00033575,60]
[388814630,1759385720629,500.0,0.00033575,60]
[388814631,1759385720836,500.0,0.00033575,60]
[388814632,1759385720903,500.0,0.00033575,60]
[388814633,1759385720972,500.0,0.00033575,60]
[388814634,1759385721063,460.0,0.00033575,60]
[388814635,1759385721132,500.0,0.00033575,60]
[388814636,1759385721363,500.0,0.00033575,60]
[388814637,1759385721599,500.0,0.00033575,60]
[388814638,1759385721859,500.0,0.00033575,60]
[388814639,1759385722089,500.0,0.00033575,60]
[388814640,1759385722368,535.6,0.00033575,60]
[388814641,1759385723154,500.0,0.00033575,60]
[388814642,1759385723409,500.0,0.00033575,60]
[388814643,1759385723724,500.0,0.00033575,60]
[388814644,1759385723963,500.0,0.00033575,60]
[388814645,1759385724209,500.0,0.00033575,60]
[388814646,1759385724473,500.0,0.00033575,60]
[388814647,1759385724706,500.0,0.00033575,60]
[388814648,1759385724774,480.89123309,0.00033575,60]
[388814649,1759385724954,500.0,0.00033575,60]
[388814650,1759385725196,500.0,0.00033575,60]
[388814651,1759385725476,500.0,0.00033575,60]
[388814652,1759385725722,500.0,0.00033575,60]
[388814653,1759385726034,500.0,0.00033575,60]
[388814654,1759385726282,500.0,0.00033575,60]
[388814655,1759385726450,480.0,0.00033575,60]
[388814656,1759385726544,500.0,0.00033575,60]
[388814657,1759385726721,480.0,0.00033575,60]
[388814658,1759385726819,500.0,0.00033575,60]
[388814659,1759385727070,500.0,0.00033575,60]
[388814660,1759385727300,500.0,0.00033575,60]
[388814661,1759385727492,480.0,0.00033575,60]
[388814662,1759385727564,500.0,0.00033575,60]
[388814663,1759385727754,500.0,0.00033575,60]
[388814664,1759385727988,500.0,0.00033575,60]
[388814665,1759385728180,480.0,0.00033575,60]
[388814666,1759385728252,500.0,0.00033575,60]
[388814667,1759385728517,501.63,0.00033575,60]
[388814668,1759385729948,482.77676911,0.00033575,60]
[388814669,1759385731127,481.82533648,0.00033575,60]
[388814670,1759385731539,481.50975665,0.00033575,60]
[388814671,1759385731672,482.52884318,0.00033575,60]
[388814672,1759385733389,500.0,0.00033575,60]
[388814673,1759385733621,500.0,0.00033575,60]
[388814674,1759385733872,459.49,0.00033575,60]
[388814675,1759385734581,500.0,0.00033575,60]
[388814676,1759385734821,500.0,0.00033575,60]
[388814677,1759385735016,480.0,0.00033575,60]
[388814678,1759385735089,500.0,0.00033575,60]
[388814679,1759385735344,500.0,0.00033575,60]
[388814680,1759385735583,500.0,0.00033575,60]
[388814681,1759385735864,500.0,0.00033575,60]
[388814682,1759385736116,500.0,0.00033575,60]
[388814683,1759385736350,500.0,0.00033575,60]
[388814684,1759385736630,500.0,0.00033575,60]
[388814685,1759385736865,205.78,0.00033575,60]
[388814686,1759385737312,480.0,0.00033575,60]
[388814687,1759385738350,482.30228454,0.00033575,60]
[388814688,1759385739121,481.1260683,0.00033575,60]
[388814689,1759385739378,500.0,0.00033575,60]
[388814690,1759385739612,176.88868382,0.00033575,60]
[388814695,1759386334321,4170.0,0.00028767,120]
[388814699,1759386515224,299.22158115,0.00025,60]
[388814703,1759386540251,708.55427965,0.00019178,2]
[388814704,1759386540278,814.53446788,0.00019178,2]
[388814705,1759386574526,3199.0,0.00026,60]
[388814941,1759386638748,-5000.0,0.00018986,2]
[388814942,1759386638758,-1200.0,0.00019177,2]
[388814943,1759386638768,-300.0,0.00019177,2]
[388814944,1759386638777,-3476.91125247,0.00019178,2]
[388814945,1759386638787,-2728.84163858,0.00019178,2]
[388814946,1759386638796,-482.9449774,0.0002,2]
[388814947,1759386638805,-490.02703835,0.00020727,7]
[388814948,1759386638814,-337.0,0.0002073,2]
[388814949,1759386638824,-337.0,0.00020761,2]
[388814950,1759386638833,-460.91235303,0.00020778,2]
[388814951,1759386638844,-293.36416222,0.00020779,2]
[388814952,1759386638853,-160.0,0.00020785,2]
[388814954,1759386638863,-234.00747223,0.00020785,2]
[388814956,1759386638872,-160.0,0.00020785,2]
[388814957,1759386638882,-160.0,0.00020785,2]
[388814959,1759386638892,-2034.12797595,0.00020791,2]
[388814960,1759386638902,-2405.89834639,0.00020807,2]
[388814961,1759386638913,-168.0,0.00020815,2]
[388814962,1759386638922,-168.0,0.00020847,2]
[388814963,1759386638932,-493.40286222,0.00020848,2]
[388814964,1759386638941,-168.0,0.00020854,2]
[388814965,1759386638951,-500.0,0.00020873,2]
[388814966,1759386638961,-500.0,0.00020873,2]
[388814967,1759386638970,-500.0,0.00020873,2]
[388814968,1759386638979,-478.92176348,0.00020877,2]
[388814969,1759386638988,-310.47888496,0.00020877,2]
[388814970,1759386638998,-1000.0,0.00020878,2]
[388814971,1759386639007,-1000.0,0.00020878,2]
[388814972,1759386639019,-1000.0,0.00020878,2]
[388814973,1759386639028,-1000.0,0.00020878,2]
[388814974,1759386639038,-1000.0,0.00020878,2]
[388814975,1759386639048,-1000.0,0.00020878,2]
[388814976,1759386639058,-1000.0,0.00020878,2]
[388814977,1759386639067,-1000.0,0.00020878,2]
[388814978,1759386639077,-1000.0,0.00020878,2]
[388814979,1759386639087,-1000.0,0.00020878,2]
[388814980,1759386639096,-151.0,0.00020878,2]
[388814981,1759386639106,-1000.0,0.00020878,2]
[388814982,1759386639115,-500.0,0.00020878,2]
[388814983,1759386639124,-1000.0,0.00020878,2]
[388814984,1759386639134,-151.0,0.00020878,2]
[388814985,1759386639143,-200.0,0.00020878,2]
[388814986,1759386639280,-1000.0,0.00020878,2]
[388814987,1759386639290,-500.0,0.00020878,2]
[388814988,1759386639299,-1000.0,0.00020878,2]
[388814989,1759386639308,-151.0,0.00020878,2]
[388814990,1759386639317,-200.0,0.00020878,2]
[388814991,1759386639326,-250.0,0.00020878,2]
[388814992,1759386639335,-1000.0,0.00020878,2]
[388814993,1759386639344,-1000.0,0.00020878,2]
[388814994,1759386639353,-151.0,0.00020878,2]
[388814995,1759386639362,-500.0,0.00020878,2]
[388814996,1759386639371,-200.0,0.00020878,2]
[388814997,1759386639381,-1000.0,0.00020878,2]
[388814998,1759386639390,-256.82383893,0.00020878,2]
[388814999,1759386639399,-1000.0,0.00020878,2]
[388815000,1759386639407,-500.0,0.00020878,2]
[388815001,1759386639417,-151.0,0.00020878,2]
[388815002,1759386639426,-200.0,0.00020878,2]
[388815003,1759386639436,-151.0,0.00020878,2]
[388815004,1759386639445,-1000.0,0.00020878,2]
[388815005,1759386639454,-1000.0,0.00020878,2]
[388815006,1759386639463,-151.0,0.00020878,2]
[388815007,1759386639473,-500.0,0.00020878,2]
[388815008,1759386639483,-200.0,0.00020878,2]
[388815009,1759386639496,-151.0,0.00020878,2]
[388815010,1759386639506,-155.38885794,0.00020878,2]
[388815011,1759386639517,-269.54782034,0.00020878,2]
[388815012,1759386639526,-500.0,0.00020878,2]
[388815013,1759386639538,-1000.0,0.00020878,2]
[388815014,1759386639548,-151.0,0.00020878,2]
[388815015,1759386639558,-200.0,0.00020878,2]
[388815016,1759386639570,-151.0,0.00020878,2]
[388815017,1759386639580,-500.0,0.00020878,2]
[388815018,1759386639590,-1000.0,0.00020878,2]
[388815019,1759386639600,-151.0,0.00020878,2]
[388815020,1759386639609,-329.15394509,0.00020878,2]
[388815021,1759386639619,-151.0,0.00020878,2]
[388815022,1759386639629,-500.0,0.00020878,2]
[388815023,1759386639638,-1000.0,0.00020878,2]
[388815024,1759386639648,-151.0,0.00020878,2]
[388815025,1759386639658,-151.0,0.00020878,2]
[388815026,1759386639668,-500.0,0.00020878,2]
[388815027,1759386639679,-1000.0,0.00020878,2]
[388815028,1759386639689,-151.0,0.00020878,2]
[388815029,1759386639698,-151.0,0.00020878,2]
[388815030,1759386639708,-500.0,0.00020878,2]
[388815031,1759386639718,-1000.0,0.00020878,2]
[388815032,1759386639727,-151.0,0.00020878,2]
[388815033,1759386639736,-151.0,0.00020878,2]
[388815034,1759386639746,-500.0,0.00020878,2]
[388815035,1759386639756,-151.0,0.00020878,2]
[388815036,1759386639766,-791.97794145,0.00020878,2]
[388815037,1759386639775,-151.0,0.00020878,2]
[388815038,1759386639784,-500.0,0.00020878,2]
[388815039,1759386639793,-151.0,0.00020878,2]
[388815040,1759386639803,-151.0,0.00020878,2]
[388815041,1759386639812,-500.0,0.00020878,2]
[388815042,1759386639821,-151.0,0.00020878,2]
[388815043,1759386639830,-500.0,0.00020878,2]
[388815044,1759386639840,-500.0,0.00020878,2]
[388815045,1759386639849,-151.0,0.00020878,2]
[388815046,1759386639859,-151.0,0.00020878,2]
[388815047,1759386639869,-151.0,0.00020878,2]
[388815048,1759386639879,-151.0,0.00020878,2]
[388815049,1759386639889,-151.0,0.00020878,2]
[388815050,1759386639898,-152.79571054,0.00020878,2]
[388815051,1759386639907,-500.0,0.00020878,2]
[388815052,1759386639917,-500.0,0.00020878,2]
[388815053,1759386639926,-500.0,0.00020878,2]
[388815054,1759386639936,-250.0,0.00020878,2]
[388815055,1759386639946,-500.0,0.00020878,2]
[388815056,1759386639955,-250.0,0.00020878,2]
[388815057,1759386639965,-500.0,0.00020878,2]
[388815058,1759386639975,-250.0,0.00020878,2]
[388815059,1759386639985,-500.0,0.00020878,2]
[388815060,1759386639995,-500.0,0.00020878,2]
[388815061,1759386640004,-504.72334421,0.00020878,2]
[388815062,1759386640015,-302.0,0.00020878,2]
[388815063,1759386640024,-752.12,0.0002088,3]
[388815064,1759386640034,-1486.87,0.0002088,10]
[388815065,1759386640044,-1239.06,0.0002088,10]
[388815066,1759386640058,-1032.55,0.0002088,10]
[388815067,1759386640071,-168.0,0.00020888,2]
[388815068,1759386640080,-2572.09,0.00020888,2]
[388815069,1759386640089,-500.0,0.00020889,2]
[388815070,1759386640099,-182.98417066,0.00020889,2]
[388815071,1759386640108,-161.49693542,0.00020889,2]
[388815072,1759386640117,-304.43595984,0.00020889,2]
[388815073,1759386640127,-5665.04454371,0.00020889,2]
[388815074,1759386640136,-370000.0,0.0002089,2]
[388815075,1759386640146,-420.0,0.00020899,2]
[388815076,1759386640156,-168.0,0.00020907,2]
[388815077,1759386640165,-168.0,0.00020953,2]
[388815078,1759386640174,-502.35773185,0.00020973,2]
[388815079,1759386640184,-500.0,0.00020973,2]
[388815080,1759386640194,-501.03166712,0.00020973,2]
[388815081,1759386640204,-501.60768823,0.00020973,2]
[388815082,1759386640213,-509.83073558,0.00020973,2]
[388815083,1759386640222,-500.94328462,0.00020973,2]
[388815084,1759386640232,-502.62564647,0.00020973,2]
[388815085,1759386640241,-303.14886399,0.00020973,2]
[388815086,1759386640251,-452.22561306,0.00020973,2]
[388815087,1759386640261,-500.0,0.00020973,2]
[388815088,1759386640270,-500.0,0.00020973,2]
[388815089,1759386640279,-502.58474246,0.00020973,2]
[388815090,1759386640289,-500.0,0.00020973,2]
[388815091,1759386640298,-500.0,0.00020973,2]
[388815092,1759386640307,-501.54152828,0.00020973,2]
[388815093,1759386640317,-500.0,0.00020973,2]
[388815094,1759386640326,-500.0,0.00020973,2]
[388815095,1759386640336,-500.0,0.00020973,2]
[388815096,1759386640346,-500.0,0.00020973,2]
[388815097,1759386640355,-500.0,0.00020973,2]
[388815098,1759386640364,-501.95754591,0.00020973,2]
[388815099,1759386640374,-501.62775985,0.00020973,2]
[388815100,1759386640384,-500.0,0.00020973,2]
[388815101,1759386640392,-500.0,0.00020973,2]
[388815102,1759386640401,-500.0,0.00020973,2]
[388815103,1759386640410,-500.0,0.00020973,2]
[388815104,1759386640419,-500.0,0.00020973,2]
[388815106,1759386640427,-500.0,0.00020973,2]
[388815108,1759386640436,-500.0,0.00020973,2]
[388815109,1759386640445,-500.0,0.00020973,2]
[388815110,1759386640455,-500.0,0.00020973,2]
[388815111,1759386640464,-503.9115301,0.00020973,2]
[388815112,1759386640473,-500.0,0.00020973,2]
[388815113,1759386640483,-500.77721047,0.00020973,2]
[388815114,1759386640497,-500.0,0.00020973,2]
[388815115,1759386640506,-500.51909188,0.00020973,2]
[388815116,1759386640516,-500.0,0.00020973,2]
[388815118,1759386640526,-503.56110543,0.00020973,2]
[388815120,1759386640537,-501.86763085,0.00020973,2]
[388815121,1759386640547,-500.0,0.00020973,2]
[388815122,1759386640555,-500.0,0.00020973,2]
[388815123,1759386640566,-87999.20513128,0.0002099,2]
[388815124,1759386640575,-151.0,0.0002099,2]
[388815125,1759386640584,-151.0,0.0002099,2]
[388815126,1759386640593,-151.0,0.0002099,2]
[388815127,1759386640602,-151.0,0.0002099,2]
[388815128,1759386640612,-4944.34601,0.0002099,2]
[388815130,1759386640621,-161.525683,0.0002099,2]
[388815132,1759386640631,-4944.34601,0.0002099,2]
[388815133,1759386640641,-946.0,0.00021,2]
[388815134,1759386640650,-337.0,0.00021001,2]
[388815135,1759386640660,-168.0,0.00021018,2]
[388815136,1759386640669,-337.0,0.00021042,2]
[388815137,1759386640678,-500.0,0.00021163,2]
[388815138,1759386640687,-353.0,0.00021192,2]
[388815139,1759386640696,-300.0,0.00021288,20]
[388815140,1759386640705,-300.0,0.00021288,20]
[388815141,1759386640714,-168.0,0.00021382,2]
[388815142,1759386640724,-414.0,0.00021409,2]
[388815143,1759386640733,-1000.0,0.00021421,2]
[388815144,1759386640743,-1000.0,0.00021421,2]
[388815145,1759386640753,-1000.0,0.00021421,2]
[388815146,1759386640762,-4000.0,0.00021484,2]
[388815147,1759386640772,-5621.0,0.000215,2]
[388815148,1759386640782,-6130.9661856,0.000215,2]
[388815149,1759386640791,-1000.0,0.00021521,2]
[388815150,1759386640801,-455.59347907,0.00021521,2]
[388815151,1759386640811,-1002.17830285,0.00021521,2]
[388815152,1759386640820,-1000.0,0.00021521,2]
[388815153,1759386640829,-1000.0,0.00021521,2]
[388815154,1759386640838,-1000.0,0.00021521,2]
[388815155,1759386640848,-501.33730105,0.00021521,2]
[388815156,1759386640857,-1000.0,0.00021521,2]
[388815157,1759386640868,-502.64413986,0.00021521,2]
[388815158,1759386640877,-463.35229626,0.00021521,2]
[388815159,1759386640886,-500.99839701,0.00021521,2]
[388815160,1759386640895,-1000.0,0.00021521,2]
[388815161,1759386640904,-502.26452921,0.00021521,2]
[388815162,1759386640914,-1000.0,0.00021521,2]
[388815163,1759386640923,-1000.0,0.00021521,2]
[388815164,1759386640932,-969.30682101,0.00021521,2]
[388815165,1759386640943,-168.0,0.00021599,2]
[388815166,1759386640953,-215.0,0.00021616,5]
[388815167,1759386640967,-337.0,0.00021645,2]
[388815168,1759386640977,-364.74785186,0.00021688,2]
[388815169,1759386640987,-1458.99140745,0.00021688,2]
[388815170,1759386640996,-195.47229932,0.00021688,2]
[388815171,1759386641008,-781.8891973,0.00021688,2]
[388815172,1759386641021,-1759.25069392,0.00021688,2]
[388815173,1759386641033,-3127.55678919,0.00021688,2]
[388815174,1759386641044,-4886.80748311,0.00021688,2]
[388815175,1759386641055,-7037.00277567,0.00021688,2]
[388815176,1759386641068,-18448.21799207,0.00021688,2]
[388815177,1759386641079,-3279.44793611,0.00021688,2]
[388815178,1759386641091,-9568.56452422,0.000217,2]
[388815179,1759386641102,-151.0,0.00021701,2]
[388815180,1759386641113,-123.95937349,0.00021701,2]
[388815270,1759387079784,221.44,0.00015225,20]
[388815271,1759387080393,221.44,0.00015225,20]
[388815273,1759387139634,300.0,0.000152,2]
[388815275,1759387198772,294.6754479,0.000152,2]
[388815276,1759387232117,-302.42545214,0.000189,2]
[388815278,1759387342444,-302.72757545,0.000189,2]
[388815279,1759387421623,282.76341084,0.00018878,2]
[388815280,1759387430335,5000.0,0.00018878,2]
[388815282,1759387452832,456.46634786,0.00018878,2]
[388815284,1759387669657,-302.8183302,0.000189,2]
[388815568,1759387832084,-302.8183302,0.00019089,2]
[388815569,1759387832094,-302.8183302,0.00019278,2]
[388815570,1759387832104,-302.8183302,0.00019467,2]
[388815571,1759387832113,-1434.80688026,0.00019642,2]
[388815572,1759387832122,-302.8183302,0.00019656,2]
[388815573,1759387832131,-1434.80688026,0.00019814,2]
[388815574,1759387832140,-575.863737,0.00019845,4]
[388815575,1759387832149,-300.0,0.00019988,2]
[388815576,1759387832158,-946.0,0.00019988,2]
[388815577,1759387832167,-300.0,0.00019988,2]
[388815578,1759387832176,-310.47888496,0.00019989,2]
[388815579,1759387832185,-478.92176348,0.00019989,2]
[388815580,1759387832194,-1200.0,0.00019989,2]
[388815581,1759387832204,-582.35503274,0.00019989,2]
[388815582,1759387832213,-500.0,0.00019989,2]
[388815583,1759387832222,-2034.12797595,0.00019989,2]
[388815584,1759387832232,-5935.97948105,0.0001999,2]
[388815590,1759387838871,-94064.02051895,0.0001999,2]
[388815591,1759387838881,-203.76652278,0.0002,2]
[388815592,1759387838891,-1434.80688026,0.00020035,2]
[388815593,1759387838900,-494.72348355,0.00020479,2]
[388815594,1759387838910,-1434.80688026,0.0002052,2]
[388815595,1759387838920,-160.0,0.00020534,2]
[388815596,1759387838930,-160.0,0.00020534,2]
[388815597,1759387838939,-293.36416222,0.00020534,2]
[388815598,1759387838949,-160.0,0.00020535,2]
[388815599,1759387838960,-234.00747223,0.00020535,2]
[388815600,1759387838970,-7736.43396722,0.00020563,2]
[388815601,1759387838980,-4895.08821958,0.00020706,2]
[388815602,1759387838990,-151.0,0.0002076,2]
[388815603,1759387838999,-155.38885794,0.0002076,2]
[388815604,1759387839008,-1000.0,0.0002076,2]
[388815605,1759387839018,-1000.0,0.0002076,2]
[388815606,1759387839028,-151.0,0.0002076,2]
[388815607,1759387839037,-500.0,0.0002076,2]
[388815608,1759387839047,-1000.0,0.0002076,2]
[388815609,1759387839057,-151.0,0.0002076,2]
[388815610,1759387839067,-500.0,0.0002076,2]
[388815611,1759387839077,-166.0,0.0002076,2]
[388815612,1759387839087,-151.0,0.0002076,2]
[388815613,1759387839101,-500.0,0.0002076,2]
[388815614,1759387839112,-1000.0,0.0002076,2]
[388815615,1759387839123,-151.0,0.0002076,2]
[388815616,1759387839134,-500.0,0.0002076,2]
[388815617,1759387839144,-1000.0,0.0002076,2]
[388815618,1759387839154,-151.0,0.0002076,2]
[388815619,1759387839164,-500.0,0.0002076,2]
[388815620,1759387839173,-1000.0,0.0002076,2]
[388815621,1759387839184,-151.0,0.0002076,2]
[388815622,1759387839196,-500.0,0.0002076,2]
[388815623,1759387839205,-1000.0,0.0002076,2]
[388815624,1759387839215,-250.0,0.0002076,2]
[388815625,1759387839224,-1000.0,0.0002076,2]
[388815626,1759387839234,-151.0,0.0002076,2]
[388815627,1759387839243,-200.0,0.0002076,2]
[388815628,1759387839253,-500.0,0.0002076,2]
[388815629,1759387839262,-1000.0,0.0002076,2]
[388815630,1759387839272,-1000.0,0.0002076,2]
[388815631,1759387839281,-250.0,0.0002076,2]
[388815632,1759387839291,-151.0,0.0002076,2]
[388815633,1759387839300,-200.0,0.0002076,2]
[388815634,1759387839310,-500.0,0.0002076,2]
[388815635,1759387839320,-1000.0,0.0002076,2]
[388815636,1759387839330,-1000.0,0.0002076,2]
[388815637,1759387839340,-250.0,0.0002076,2]
[388815638,1759387839350,-151.0,0.0002076,2]
[388815639,1759387839360,-200.0,0.0002076,2]
[388815640,1759387839369,-500.0,0.0002076,2]
[388815641,1759387839379,-1000.0,0.0002076,2]
[388815642,1759387839389,-1000.0,0.0002076,2]
[388815643,1759387839399,-151.0,0.0002076,2]
[388815644,1759387839408,-200.0,0.0002076,2]
[388815645,1759387839419,-500.0,0.0002076,2]
[388815646,1759387839429,-1000.0,0.0002076,2]
[388815647,1759387839439,-1000.0,0.0002076,2]
[388815648,1759387839449,-151.0,0.0002076,2]
[388815649,1759387839458,-200.0,0.0002076,2]
[388815650,1759387839469,-1000.0,0.0002076,2]
[388815651,1759387839479,-500.0,0.0002076,2]
[388815652,1759387839488,-1000.0,0.0002076,2]
[388815653,1759387839498,-151.0,0.0002076,2]
[388815654,1759387839508,-200.0,0.0002076,2]
[388815655,1759387839517,-1000.0,0.0002076,2]
[388815656,1759387839527,-500.0,0.0002076,2]
[388815657,1759387839537,-151.0,0.0002076,2]
[388815658,1759387839547,-1000.0,0.0002076,2]
[388815659,1759387839556,-1000.0,0.0002076,2]
[388815660,1759387839566,-329.15394509,0.0002076,2]
[388815663,1759387839576,-500.0,0.0002076,2]
[388815666,1759387839586,-151.0,0.0002076,2]
[388815669,1759387839595,-1000.0,0.0002076,2]
[388815672,1759387839606,-1000.0,0.0002076,2]
[388815675,1759387839616,-1000.0,0.0002076,2]
[388815678,1759387839626,-500.0,0.0002076,2]
[388815681,1759387839636,-151.0,0.0002076,2]
[388815697,1759387839713,-500.0,0.0002076,2]
[388815702,1759387839736,-1000.0,0.0002076,2]
[388815704,1759387839746,-500.0,0.0002076,2]
[388815707,1759387839755,-791.97794145,0.0002076,2]
[388815709,1759387839764,-500.0,0.0002076,2]
[388815711,1759387839774,-151.0,0.0002076,2]
[388815714,1759387839783,-269.54782034,0.0002076,2]
[388815717,1759387839793,-500.0,0.0002076,2]
[388815720,1759387839803,-500.0,0.0002076,2]
[388815723,1759387839812,-500.0,0.0002076,2]
[388815726,1759387839821,-500.0,0.0002076,2]
[388815729,1759387839831,-500.0,0.0002076,2]
[388815731,1759387839840,-504.72334421,0.0002076,2]
[388815734,1759387839849,-250.0,0.0002076,2]